bitfinex-derivatives/quotes_SOLF0:USTF0_20230105
["timestamp","ask_amount","ask_price","bid_price","bid_amount"]
[1672943420128,38.00334582,13.183,13.178,22.77]
[1672943421073,38.00334582,13.183,13.178,60.725]
[1672943421387,38.00334582,13.183,13.178,37.955]
[1672943421599,10.0,13.182,13.178,37.955]
[1672943421909,37.95,13.18,13.175,22.77]
[1672943422126,37.95,13.18,13.174,0.06925551]
[1672943422340,10.0,13.179,13.174,0.06925551]
[1672943422545,37.957,13.178,13.174,0.06925551]
[1672943422754,10.0,13.177,13.174,0.06925551]
[1672943422965,10.0,13.177,13.173,22.77]
[1672943423489,37.957,13.178,13.175,37.964]
[1672943423702,10.0,13.177,13.175,37.964]
[1672943424225,37.96,13.177,13.175,37.964]
[1672943427477,37.96,13.177,13.172,75.942]
[1672943428949,37.96,13.177,13.173,37.969]
[1672943431053,10.0667363,13.18,13.171,22.8315156]
[1672943431054,10.0,13.178,13.175,22.77]
[1672943431470,10.0,13.178,13.175,136.659]
[1672943432315,47.954,13.179,13.175,136.659]
[1672943433365,47.954,13.179,13.175,60.733]
[1672943433575,47.954,13.179,13.175,37.963]
[1672943434625,47.954,13.179,13.173,22.77]
[1672943434940,47.954,13.179,13.174,37.964]
[1672943437151,37.954,13.179,13.174,37.964]
[1672943437463,0.0667363,13.18,13.175,10.0]
[1672943438093,0.0667363,13.18,13.174,22.77]
[1672943438298,38.0177363,13.18,13.176,37.96]
[1672943439670,0.0667363,13.18,13.176,37.96]
[1672943440403,10.0,13.179,13.171,22.8315156]
[1672943440818,10.0,13.179,13.174,37.965]
[1672943441344,37.96,13.177,13.172,75.943]
[1672943441557,10.0,13.176,13.171,22.8315156]
[1672943441769,47.963,13.176,13.171,60.8055156]
[1672943442293,47.963,13.176,13.171,38.0355156]
[1672943444926,47.963,13.176,13.171,113.9875156]
[1672943445233,10.0,13.178,13.171,136.7575156]
[1672943445552,47.956,13.178,13.171,136.7575156]
[1672943449858,47.956,13.178,13.171,60.8055156]
[1672943450593,47.956,13.178,13.171,0.0615156]
[1672943451436,47.956,13.178,13.171,38.0365156]
[1672943451962,47.956,13.178,13.171,60.8065156]
[1672943453011,47.956,13.178,13.171,136.7585156]
[1672943453855,47.956,13.178,13.171,60.8065156]
[1672943455850,37.956,13.178,13.171,60.8065156]
[1672943456061,37.956,13.178,13.173,22.77]
[1672943456375,37.956,13.178,13.174,10.0]
[1672943457322,37.956,13.178,13.173,22.77]
[1672943457955,37.956,13.178,13.174,37.967]
[1672943458901,37.956,13.178,13.173,22.77]
[1672943459213,37.956,13.178,13.174,37.967]
[1672943460478,37.956,13.178,13.175,10.0]
[1672943460900,37.954,13.179,13.175,10.0]
[1672943461113,10.0667363,13.18,13.175,10.0]
[1672943461328,0.0667363,13.18,13.175,10.0]
[1672943461746,10.0667363,13.18,13.175,10.0]
[1672943461954,38.0177363,13.18,13.176,37.961]
[1672943462588,38.0177363,13.18,13.173,22.77]
[1672943464058,38.0177363,13.18,13.175,37.963]
[1672943465110,37.958,13.178,13.173,22.77]
[1672943465426,10.0,13.177,13.173,22.77]
[1672943466058,37.957,13.178,13.173,22.77]
[1672943466897,47.954,13.179,13.174,37.966]
[1672943467103,37.954,13.179,13.175,10.0]
[1672943468053,37.954,13.179,13.173,98.707]
[1672943468366,10.0,13.178,13.174,37.965]
[1672943468576,37.959,13.177,13.174,37.965]
[1672943471837,10.0,13.176,13.173,22.77]
[1672943472155,37.966,13.175,13.171,0.0615156]
[1672943472570,10.0,13.174,13.171,0.0615156]
[1672943472781,37.97,13.173,13.168,22.83208599]
[1672943473097,10.0,13.172,13.171,37.975]
[1672943473307,10.0,13.172,13.169,75.963]
[1672943474465,37.97,13.173,13.17,10.0]
[1672943474778,37.97,13.173,13.17,47.977]
[1672943476986,37.97,13.173,13.17,37.977]
[1672943478245,37.969,13.174,13.17,37.977]
[1672943486549,37.969,13.174,13.17,37.978]
[1672943489804,32.77,13.173,13.168,0.06208599]
[1672943490116,123.923,13.172,13.168,0.06208599]
[1672943490327,10.0,13.171,13.168,0.06208599]
[1672943490539,10.0,13.171,13.165,38.05333278]
[1672943491274,113.937,13.17,13.165,38.05333278]
[1672943491588,113.937,13.17,13.165,60.82333278]
[1672943492327,37.979,13.17,13.165,60.82333278]
[1672943493794,10.0,13.169,13.165,60.82333278]
[1672943494003,37.985,13.168,13.165,60.82333278]
[1672943494217,37.985,13.168,13.165,60.762]
[1672943496211,37.983,13.169,13.167,22.77]
[1672943496421,0.06290697,13.171,13.167,22.77]
[1672943496629,0.06290697,13.171,13.168,10.0]
[1672943496843,37.981,13.17,13.168,10.0]
[1672943497053,37.981,13.17,13.167,22.77]
[1672943497360,37.981,13.17,13.168,37.985]
[1672943497578,75.943,13.173,13.169,10.0]
[1672943498308,75.943,13.173,13.168,22.77]
[1672943498521,37.972,13.173,13.17,37.979]
[1672943498729,10.0,13.172,13.17,37.979]
[1672943499468,47.974,13.172,13.17,37.979]
[1672943500305,47.974,13.172,13.169,37.979]
[1672943501776,47.974,13.172,13.168,22.77]
[1672943502932,47.974,13.172,13.168,60.753]
[1672943503144,123.92,13.172,13.168,60.753]
[1672943504826,123.92,13.172,13.168,22.77]
[1672943507772,123.92,13.172,13.167,60.757]
[1672943509874,123.92,13.172,13.167,22.77]
[1672943510079,123.92,13.172,13.167,60.757]
[1672943512184,123.92,13.172,13.167,22.77]
[1672943513861,123.92,13.172,13.167,60.757]
[1672943515546,123.92,13.172,13.167,37.987]
[1672943515757,123.92,13.172,13.166,37.989]
[1672943516280,123.92,13.172,13.165,0.06023587]
[1672943517009,123.92,13.172,13.165,38.05223587]
[1672943517220,123.92,13.172,13.165,0.06023587]
[1672943522908,123.92,13.172,13.165,38.05123587]
[1672943535096,123.8479413,13.172,13.165,0.06023587]
[1672943536671,123.8479413,13.172,13.165,3.587e-05]
[1672943536881,123.8479413,13.172,13.158,50.0]
[1672943536882,22.77,13.166,13.158,50.0]
[1672943537089,37.997,13.164,13.159,10.0]
[1672943538462,37.997,13.164,13.16,38.006]
[1672943538668,37.997,13.164,13.161,10.0]
[1672943539930,37.997,13.164,13.162,38.002]
[1672943540138,37.997,13.164,13.163,10.0]
[1672943541402,37.997,13.164,13.162,38.002]
[1672943545820,37.997,13.164,13.161,38.003]
[1672943546137,37.997,13.164,13.16,10.0]
[1672943546347,37.997,13.164,13.159,86.017]
[1672943546874,37.997,13.164,13.16,38.005]
[1672943547085,37.997,13.164,13.161,10.0]
[1672943547715,37.997,13.164,13.16,22.77]
[1672943548131,37.997,13.164,13.161,48.003]
[1672943548870,37.997,13.164,13.161,38.003]
[1672943550655,0.06640683,13.166,13.161,38.003]
[1672943550872,0.06640683,13.166,13.165,22.77]
[1672943551070,0.06754923,13.17,13.165,60.763]
[1672943551284,10.06638281,13.172,13.165,22.77]
[1672943551705,37.983,13.169,13.165,22.77]
[1672943551916,10.0,13.168,13.163,22.8412108]
[1672943552233,10.0,13.168,13.164,37.995]
[1672943552542,37.989,13.167,13.165,10.0]
[1672943552758,75.96,13.17,13.165,10.0]
[1672943552960,75.96,13.17,13.165,47.992]
[1672943553920,37.985,13.168,13.165,47.992]
[1672943555494,37.985,13.168,13.165,37.992]
[1672943555706,86.01538281,13.172,13.165,37.992]
[1672943556021,10.06638281,13.172,13.165,37.992]
[1672943556969,37.984,13.169,13.165,37.992]
[1672943557177,10.0,13.168,13.165,37.992]
[1672943557597,10.0,13.17,13.165,37.992]
[1672943558440,37.983,13.169,13.165,37.992]
[1672943558754,10.0,13.168,13.165,37.992]
[1672943559169,10.0,13.17,13.165,37.992]
[1672943559907,37.986,13.168,13.165,37.992]
[1672943560747,75.956,13.171,13.165,37.992]
[1672943560957,10.06638281,13.172,13.165,37.992]
[1672943561167,10.06638281,13.172,13.167,37.985]
[1672943561378,37.977,13.171,13.167,47.985]
[1672943562110,10.0,13.17,13.168,10.0]
[1672943562328,0.06638281,13.172,13.168,32.77]
[1672943563473,0.06638281,13.172,13.169,37.982]
[1672943563686,37.971,13.173,13.169,37.982]
[1672943563897,37.971,13.173,13.17,10.0]
[1672943565057,37.971,13.173,13.171,37.976]
[1672943565264,37.969,13.174,13.172,10.0]
[1672943565475,75.97979806,13.178,13.172,10.0]
[1672943565789,10.0,13.177,13.172,10.0]
[1672943566949,47.959,13.177,13.172,47.973]
[1672943567998,38.01979806,13.178,13.177,0.07134894]
[1672943568205,75.902,13.18,13.177,0.07134894]
[1672943568412,0.06172703,13.182,13.177,0.07134894]
[1672943568413,75.95172703,13.182,13.177,0.07134894]
[1672943568842,75.95172703,13.182,13.177,10.07134894]
[1672943569155,37.949,13.181,13.177,48.03034894]
[1672943569994,37.949,13.181,13.177,38.03034894]
[1672943572199,38.00672703,13.182,13.177,38.03034894]
[1672943572826,0.06172703,13.182,13.177,38.03034894]
[1672943573044,37.942,13.183,13.182,0.10758027]
[1672943573254,47.942,13.183,13.182,0.10758027]
[1672943573466,37.942,13.183,13.182,0.10758027]
[1672943573988,0.10807464,13.182,13.18,10.0]
[1672943574196,10.10807464,13.182,13.179,37.951]
[1672943574406,0.10807464,13.182,13.179,37.951]
[1672943574617,0.10807464,13.182,13.18,10.0]
[1672943575455,0.10807464,13.182,13.18,47.949]
[1672943575984,0.00807464,13.182,13.181,22.77]
[1672943576407,0.00807464,13.182,13.181,70.717]
[1672943579770,0.06254684,13.186,13.182,10.0]
[1672943579980,0.06254684,13.186,13.184,22.77]
[1672943580289,0.06921114,13.19,13.185,10.0]
[1672943580506,0.06238776,13.192,13.185,146.578]
[1672943581550,37.97838776,13.192,13.185,146.578]
[1672943582499,37.97838776,13.192,13.185,47.936]
[1672943582711,10.0,13.191,13.185,47.936]
[1672943583025,37.923,13.19,13.185,37.936]
[1672943585866,10.06238776,13.192,13.185,37.936]
[1672943586180,10.06238776,13.192,13.186,10.0]
[1672943586392,37.922,13.19,13.187,37.929]
[1672943586598,37.922,13.19,13.188,10.0]
[1672943588390,37.922,13.19,13.187,37.929]
[1672943589439,37.922,13.19,13.186,47.931]
[1672943589966,37.922,13.19,13.185,10.0]
[1672943590801,75.843,13.191,13.185,10.0]
[1672943590802,37.919,13.191,13.186,37.933]
[1672943591013,10.06238776,13.192,13.187,10.0]
[1672943591217,0.06238776,13.192,13.187,10.0]
[1672943593007,0.06238776,13.192,13.188,37.926]
[1672943593218,0.06238776,13.192,13.189,10.0]
[1672943593424,37.914,13.193,13.189,10.0]
[1672943594999,37.914,13.193,13.191,10.0]
[1672943595422,37.914,13.193,13.189,10.0]
[1672943596581,37.914,13.193,13.19,37.921]
[1672943597003,37.914,13.193,13.189,10.0]
[1672943597213,37.914,13.193,13.188,10.0]
[1672943597948,113.74,13.193,13.188,37.926]
[1672943598271,47.921,13.191,13.186,0.06063098]
[1672943598581,10.0,13.19,13.186,0.06063098]
[1672943598999,37.922,13.19,13.186,0.06063098]
[1672943600366,37.922,13.19,13.186,37.99263098]
[1672943603305,37.921,13.19,13.186,37.99263098]
[1672943603731,10.0,13.189,13.186,0.06063098]
[1672943603942,37.927,13.188,13.186,0.06063098]
[1672943604254,37.927,13.188,13.183,22.77]
[1672943604666,37.927,13.188,13.182,22.83213339]
[1672943606458,10.0,13.187,13.182,22.83213339]
[1672943606669,37.934,13.186,13.182,22.83213339]
[1672943606879,10.0,13.185,13.182,22.83213339]
[1672943607197,37.938,13.184,13.182,22.77]
[1672943610351,37.937,13.185,13.182,22.77]
[1672943610561,85.864,13.187,13.182,22.77]
[1672943611298,37.934,13.186,13.182,22.77]
[1672943611613,10.0,13.185,13.182,22.77]
[1672943612347,10.0,13.183,13.182,22.77]
[1672943612669,10.0,13.183,13.179,22.83451559]
[1672943612979,37.945,13.182,13.179,22.83451559]
[1672943613191,37.945,13.182,13.179,22.77]
[1672943613923,37.945,13.182,13.179,60.722]
[1672943615398,37.945,13.182,13.179,22.77]
[1672943617609,37.945,13.182,13.179,60.722]
[1672943618342,37.945,13.182,13.179,22.77]
[1672943618658,37.945,13.182,13.179,60.722]
[1672943623488,37.945,13.182,13.177,0.07134894]
[1672943623700,10.0,13.181,13.177,0.07134894]
[1672943624015,113.853,13.18,13.177,0.07134894]
[1672943624329,10.0,13.179,13.177,0.07134894]
[1672943624530,113.868,13.178,13.177,0.07134894]
[1672943639251,37.956,13.178,13.177,0.07134894]
[1672943643345,37.954,13.179,13.177,0.07134894]
[1672943648811,37.954,13.179,13.177,38.02934894]
[1672943649018,37.954,13.179,13.177,0.07134894]
[1672943664895,37.954,13.179,13.176,37.96]
[1672943670039,0.06287513,13.183,13.176,37.96]
[1672943670257,37.951,13.18,13.177,10.0]
[1672943670771,0.06287513,13.183,13.179,10.0]
[1672943671197,0.06287513,13.183,13.181,10.0]
[1672943671514,37.943,13.183,13.181,10.0]
[1672943671827,37.943,13.183,13.179,10.0]
[1672943673924,37.942,13.183,13.179,10.0]
[1672943674243,85.867,13.186,13.181,37.946]
[1672943674458,85.867,13.186,13.182,10.0]
[1672943674770,37.942,13.183,13.182,10.0]
[1672943674977,37.942,13.183,13.181,37.946]
[1672943677393,37.942,13.183,13.179,10.07080156]
[1672943678233,37.942,13.183,13.179,0.07080156]
[1672943678445,37.942,13.183,13.179,38.02280156]
[1672943680966,37.942,13.183,13.179,0.07080156]
[1672943682127,37.942,13.183,13.179,38.02380156]
[1672943682964,10.0,13.182,13.179,0.07080156]
[1672943683182,37.947,13.181,13.178,22.6]
[1672943683385,10.0,13.18,13.178,22.6]
[1672943684117,37.942,13.183,13.178,22.6]
[1672943684333,37.942,13.183,13.178,60.555]
[1672943685175,37.946,13.182,13.178,60.555]
[1672943688218,37.946,13.182,13.178,22.6]
[1672943688852,0.06754222,13.184,13.178,22.6]
[1672943689061,37.946,13.182,13.179,10.0]
[1672943690325,37.946,13.182,13.178,22.6]
[1672943690742,10.06754222,13.184,13.18,37.95]
[1672943690951,0.06754222,13.184,13.181,10.0]
[1672943691165,37.942,13.183,13.181,10.0]
[1672943691378,10.0,13.186,13.181,10.0]
[1672943691792,37.941,13.184,13.181,47.946]
[1672943692534,37.941,13.184,13.181,37.946]
[1672943697361,10.0,13.183,13.178,22.6]
[1672943697572,37.946,13.182,13.177,0.06220285]
[1672943697778,10.0,13.181,13.177,0.06220285]
[1672943697991,47.948,13.181,13.179,37.951]
[1672943698202,37.948,13.181,13.18,10.0]
[1672943699155,37.948,13.181,13.179,37.951]
[1672943705983,37.946,13.182,13.179,37.951]
[1672943706195,10.0,13.183,13.179,37.951]
[1672943707041,37.947,13.181,13.179,37.951]
[1672943710297,37.946,13.182,13.179,37.951]
[1672943711873,37.946,13.182,13.178,37.955]
[1672943713765,37.946,13.182,13.177,22.68220285]
[1672943714397,37.946,13.182,13.177,60.63920285]
[1672943714710,37.951,13.18,13.177,22.68220285]
[1672943714920,37.951,13.18,13.177,22.62]
[1672943715132,10.0,13.179,13.177,22.62]
[1672943715338,37.956,13.178,13.174,22.72155608]
[1672943715663,10.0,13.177,13.174,60.68855608]
[1672943715868,10.0,13.177,13.174,60.627]
[1672943717023,10.0,13.179,13.174,60.627]
[1672943717971,37.959,13.177,13.174,60.627]
[1672943718174,10.0,13.176,13.174,60.627]
[1672943718596,10.0,13.179,13.174,60.627]
[1672943720170,75.905,13.18,13.174,60.627]
[1672943720376,75.905,13.18,13.176,22.62]
[1672943720591,75.905,13.18,13.177,10.0]
[1672943721012,37.953,13.179,13.176,22.62]
[1672943721226,10.0,13.178,13.176,22.62]
[1672943721640,37.957,13.178,13.176,22.62]
[1672943722906,37.957,13.178,13.176,60.581]
[1672943724484,37.957,13.178,13.176,22.62]
[1672943725534,37.956,13.178,13.176,22.62]
[1672943726902,37.956,13.178,13.176,60.58]
[1672943727740,38.01490688,13.181,13.177,10.0]
[1672943728159,0.06690688,13.181,13.179,22.71]
[1672943728375,0.07074181,13.185,13.18,10.0]
[1672943728582,37.94,13.184,13.18,10.0]
[1672943729423,37.94,13.184,13.179,22.71]
[1672943729741,37.939,13.184,13.18,37.95]
[1672943729949,10.0,13.183,13.181,10.0]
[1672943730371,10.0,13.183,13.18,10.0]
[1672943730577,0.07074181,13.185,13.18,10.0]
[1672943731947,37.94,13.184,13.181,37.947]
[1672943732158,37.94,13.184,13.182,10.0]
[1672943732577,0.07074181,13.185,13.183,22.76]
[1672943732790,22.72347949,13.189,13.183,22.76]
[1672943732996,22.72347949,13.189,13.184,10.0]
[1672943733208,37.928,13.188,13.184,47.938]
[1672943736054,60.64947949,13.189,13.184,47.938]
[1672943736256,0.06347949,13.189,13.184,70.558]
[1672943743092,0.06347949,13.189,13.184,47.938]
[1672943746878,37.98747949,13.189,13.184,47.938]
[1672943749298,37.98747949,13.189,13.184,37.938]
[1672943752758,0.06347949,13.189,13.185,10.0]
[1672943754968,37.98847949,13.189,13.186,37.932]
[1672943755175,37.925,13.189,13.187,10.0]
[1672943755824,37.925,13.189,13.185,10.0]
[1672943756129,37.925,13.189,13.185,47.934]
[1672943756755,37.925,13.189,13.185,10.0]
[1672943757906,37.925,13.189,13.185,47.936]
[1672943761800,37.924,13.189,13.185,47.936]
[1672943763689,37.924,13.189,13.185,37.936]
[1672943764005,37.924,13.189,13.181,22.7556881]
[1672943764219,37.933,13.186,13.181,0.0656881]
[1672943764635,10.0,13.185,13.181,0.0656881]
[1672943765054,10.0,13.185,13.181,38.0116881]
[1672943765905,47.937,13.185,13.181,38.0116881]
[1672943766212,37.937,13.185,13.181,38.0116881]
[1672943767265,37.937,13.185,13.181,0.0656881]
[1672943769892,37.937,13.185,13.181,38.0116881]
[1672943771153,37.937,13.185,13.182,10.0]
[1672943771677,75.92198292,13.188,13.182,10.0]
[1672943772097,37.932,13.187,13.183,37.941]
[1672943772415,37.932,13.187,13.184,10.0]
[1672943773988,37.931,13.187,13.184,47.937]
[1672943775044,10.0,13.186,13.181,0.0656881]
[1672943775357,37.937,13.185,13.181,0.0656881]
[1672943775566,10.0,13.184,13.181,0.0656881]
[1672943775776,37.944,13.183,13.178,22.69100728]
[1672943776192,10.0,13.182,13.178,22.69100728]
[1672943776512,10.0,13.182,13.179,37.952]
[1672943776831,37.944,13.183,13.179,37.952]
[1672943785341,37.94,13.184,13.18,10.0]
[1672943785546,0.07054418,13.185,13.183,22.68]
[1672943785865,0.06529735,13.189,13.184,10.0]
[1672943786078,37.926,13.189,13.184,47.938]
[1672943787762,10.06826303,13.191,13.184,47.938]
[1672943788911,37.922,13.19,13.184,47.938]
[1672943789220,10.0,13.189,13.184,47.938]
[1672943790383,37.922,13.19,13.184,47.938]
[1672943791331,37.922,13.19,13.184,37.938]
[1672943791542,10.0,13.189,13.184,37.938]
[1672943791752,37.928,13.188,13.184,37.938]
[1672943792274,10.0,13.187,13.184,37.938]
[1672943792487,47.931,13.187,13.184,37.938]
[1672943794901,47.931,13.187,13.182,0.06659927]
[1672943795429,70.671,13.187,13.182,0.06659927]
[1672943797112,10.0,13.186,13.178,22.69]
[1672943797423,10.0,13.183,13.178,22.69]
[1672943799103,10.0,13.183,13.178,60.645]
[1672943799104,10.0,13.181,13.178,60.645]
[1672943800254,47.949,13.181,13.178,22.69]
[1672943800470,70.689,13.181,13.176,0.06629828]
[1672943800891,32.66,13.18,13.171,22.59]
[1672943801206,37.958,13.178,13.171,22.59]
[1672943801415,10.0,13.177,13.171,22.59]
[1672943801627,37.964,13.176,13.172,37.971]
[1672943801939,10.0,13.175,13.172,37.971]
[1672943802149,47.966,13.175,13.172,37.971]
[1672943802571,47.96,13.177,13.172,37.971]
[1672943804990,47.96,13.177,13.172,60.701]
[1672943806151,37.96,13.177,13.172,60.701]
[1672943808250,10.0,13.176,13.172,37.971]
[1672943808459,37.967,13.175,13.17,22.73]
[1672943808882,10.0,13.174,13.17,22.73]
[1672943809083,47.969,13.174,13.17,22.73]
[1672943810773,47.969,13.174,13.17,60.708]
[1672943810988,47.969,13.174,13.17,22.73]
[1672943811298,47.969,13.174,13.169,0.06521185]
[1672943816551,37.969,13.174,13.169,0.06521185]
[1672943817810,10.0,13.173,13.169,0.06521185]
[1672943818020,37.974,13.172,13.169,0.06521185]
[1672943818231,10.0,13.171,13.166,32.75656049]
[1672943818544,10.0,13.171,13.166,22.75656049]
[1672943819071,10.0,13.171,13.168,37.982]
[1672943820436,37.974,13.172,13.168,37.982]
[1672943821593,37.974,13.172,13.168,37.984]
[1672943821905,10.0,13.171,13.168,37.984]
[1672943822115,47.976,13.171,13.168,37.984]
[1672943823482,47.976,13.171,13.166,22.75656049]
[1672943824951,47.976,13.171,13.166,60.74656049]
[1672943825163,47.976,13.171,13.166,22.75656049]
[1672943825683,37.976,13.171,13.166,0.06656049]
[1672943825899,37.976,13.171,13.167,22.69]
[1672943826212,37.976,13.171,13.168,10.0]
[1672943827053,37.976,13.171,13.167,22.69]
[1672943832310,37.976,13.171,13.167,60.676]
[1672943832828,37.982,13.169,13.166,0.06656049]
[1672943833040,37.982,13.169,13.164,22.59]
[1672943833247,10.0,13.168,13.163,0.06025762]
[1672943833457,37.989,13.167,13.163,38.05725762]
[1672943833886,10.0,13.166,13.163,38.05725762]
[1672943834092,37.993,13.165,13.163,37.997]
[1672943835248,37.993,13.165,13.162,22.62]
[1672943835669,37.993,13.165,13.16,22.65718047]
[1672943836191,37.993,13.165,13.162,38.0]
[1672943836406,0.07113888,13.167,13.163,10.0]
[1672943837143,38.06013888,13.167,13.163,10.0]
[1672943837353,38.06013888,13.167,13.162,60.62]
[1672943839036,38.06013888,13.167,13.164,37.995]
[1672943839247,10.0,13.166,13.162,22.62]
[1672943839451,37.994,13.165,13.162,22.62]
[1672943839873,10.0,13.164,13.162,22.62]
[1672943840398,37.995,13.165,13.163,37.998]
[1672943842080,10.0,13.166,13.163,37.998]
[1672943842501,10.0,13.167,13.163,37.998]
[1672943843136,37.991,13.166,13.163,37.998]
[1672943843348,10.0,13.165,13.163,37.998]
[1672943843560,10.0,13.165,13.162,22.62]
[1672943843869,47.995,13.165,13.162,22.62]
[1672943844924,47.995,13.165,13.162,60.619]
[1672943845449,37.995,13.165,13.162,60.619]
[1672943847760,37.995,13.165,13.162,37.999]
[1672943848801,85.981,13.167,13.162,37.999]
[1672943849011,37.992,13.166,13.162,37.999]
[1672943849221,10.0,13.165,13.162,37.999]
[1672943849863,47.995,13.165,13.162,37.999]
[1672943850381,47.993,13.165,13.162,37.999]
[1672943851543,37.993,13.165,13.162,37.999]
[1672943854904,10.0,13.166,13.162,37.999]
[1672943855954,37.994,13.165,13.162,37.999]
[1672943856165,10.0,13.164,13.162,37.999]
[1672943857318,10.0,13.164,13.16,0.06718047]
[1672943857528,47.997,13.164,13.16,0.06718047]
[1672943862573,37.997,13.164,13.16,0.06718047]
[1672943862994,37.997,13.164,13.16,38.07218047]
[1672943869201,37.997,13.164,13.16,0.06718047]
[1672943869514,10.0,13.163,13.16,0.06718047]
[1672943869828,38.002,13.162,13.159,38.008]
[1672943871404,38.002,13.162,13.158,22.62]
[1672943872351,38.002,13.162,13.158,60.632]
[1672943877717,38.002,13.162,13.158,38.012]
[1672943880343,10.0,13.161,13.158,38.012]
[1672943881606,38.004,13.162,13.158,38.012]
[1672943883704,10.0,13.161,13.158,38.012]
[1672943886334,38.004,13.162,13.158,38.012]
[1672943887805,0.06241704,13.164,13.158,60.632]
[1672943888017,0.06241704,13.164,13.159,10.0]
[1672943888330,0.06241704,13.164,13.16,38.006]
[1672943888541,38.06141704,13.164,13.161,10.0]
[1672943888748,37.999,13.164,13.161,10.0]
[1672943889065,37.999,13.164,13.159,10.0]
[1672943889277,10.0,13.163,13.16,38.006]
[1672943889589,10.0,13.161,13.16,38.006]
[1672943890533,10.0,13.161,13.158,98.643]
[1672943890742,10.0,13.161,13.159,38.009]
[1672943891162,48.006,13.161,13.159,38.009]
[1672943891375,10.0,13.161,13.157,0.06843731]
[1672943891786,10.0,13.161,13.157,38.08343731]
[1672943891787,48.005,13.161,13.157,38.08343731]
[1672943893586,38.005,13.161,13.157,38.08343731]
[1672943898840,10.0,13.16,13.157,38.08343731]
[1672943899052,38.011,13.159,13.156,22.74]
[1672943899263,10.0,13.158,13.154,0.0617754]
[1672943900417,38.017,13.157,13.154,0.0617754]
[1672943900732,10.0,13.156,13.153,60.616]
[1672943900943,38.022,13.155,13.153,60.616]
[1672943902518,38.021,13.156,13.153,60.616]
[1672943902937,10.0,13.155,13.152,22.59]
[1672943903145,37.7976886,13.154,13.151,0.0618592]
[1672943903355,10.0,13.153,13.15,22.62]
[1672943903566,10.0,13.153,13.15,60.655]
[1672943904406,38.029,13.153,13.15,60.655]
[1672943907552,38.027,13.154,13.15,60.655]
[1672943911234,38.027,13.154,13.15,22.62]
[1672943912387,38.027,13.154,13.15,60.656]
[1672943915653,38.025,13.154,13.15,136.73]
[1672943915864,10.0,13.153,13.15,60.656]